[Event "Kezmarok Chess Open 2022"]
[Site "Kezmarok"]
[Date "2022.09.24"]
[Round "1.1"]
[White "Janik, Marek Tobias"]
[Black "Berezjuk, Sergej"]
[Result "0-1"]
[ECO "A20"]
[WhiteElo "1823"]
[BlackElo "2382"]
[Annotator "TA"]
[PlyCount "50"]
[EventDate "2022.09.24"]
[EventType "swiss"]
[EventCountry "SVK"]
[SourceTitle "playchess.com"]
[Source "ChessBase"]
[SourceQuality "1"]
[TimeControl "40/5400+30:1800+30"]

{[%evp 9,50,4,0,0,0,0,0,-39,-18,-85,-68,-158,-173,-161,-158,-184,-187,-179,-168,-212,-196,-220,-219,-210,-220,-220,-155,-310,-295,-272,-265,-225,-215,-713,-721,-731,-731,-731,-728,-945,-939,-952,-704]} 1. c4 {[%emt 0:00:07]} e5 {[%emt 0:00:20]} 2. g3 {[%emt 0:00:26]} c6 {[%emt 0:00:02]} 3. d4 {[%emt 0:00:33]} e4 {[%emt 0:00:08]} 4. Nc3 {[%emt 0:00:34]} d5 {[%emt 0:00:25]} 5. Bg2 {[%emt 0:01:12]} Nf6 {[%emt 0:02:36]} 6. Bg5 {[%emt 0:04:03] A20: English Opening: 1...e5.} Nbd7 {[%emt 0:02:01]} 7. e3 {[%emt 0:07:45]} h6 {[%emt 0:02:03] [#]} 8. Bf4 $146 {[%emt 0:06:02] The position is equal.} ({Predecessor:} 8. Bxf6 Nxf6 9. Nge2 Bd6 10. Qb3 O-O 11. cxd5 cxd5 12. O-O Bg4 13. f3 exf3 14. Bxf3 {0-1 (49) Tello Chavez,I (2270)-Sanchez Enriquez,O (2324) Mexico City 2021}) 8... Qa5 {[%emt 0:06:14]} 9. cxd5 {[%emt 0:06:52]} (9. h4 $11 {keeps the balance.}) 9... Nxd5 $17 {[%emt 0:02:39]} 10. Nge2 {[%emt 0:03:35]} (10. h4 $1 $15) 10... g5 $36 {[%emt 0:08:28][%mdl 2048] Black has strong initiative. Black is more active.} 11. Be5 {[%emt 0:02:02]} f6 {[%emt 0:03:39]} 12. Bxe4 {[%emt 0:02:04]} Nxc3 {[%emt 0:04:01]} ({Don't do} 12... Nxe5 13. dxe5 fxe5 14. Bg6+ (14. Bxd5 cxd5 15. Qxd5 Qxd5 $14) 14... Ke7 15. O-O $16) 13. Nxc3 {[%emt 0:01:12]} fxe5 {[%emt 0:00:15]} 14. Bg6+ {[%emt 0:02:13]} Kd8 {[%emt 0:01:36]} 15. O-O {[%emt 0:01:59]} Bb4 {[%emt 0:02:21]} 16. Ne4 {[%emt 0:01:54]} Qd5 {[%emt 0:02:13] Against Bf7} 17. Qa4 {[%emt 0:12:25]} a5 {[%emt 0:05:31]} 18. Rfd1 $2 {[%emt 0:03:08] [#]} (18. a3 $17 {was forced.} Be7 19. Nc3) 18... Kc7 $19 {[%emt 0:04:08]} 19. a3 {[%emt 0:04:19]} Be7 {[%emt 0:07:36]} 20. Nc3 {[%emt 0:05:04]} Qe6 {[%emt 0:02:03]} 21. Rac1 $2 {[%emt 0:04:48]} (21. Qc2 exd4 22. Bf5) 21... Qxg6 {[%emt 0:01:24] Black is clearly winning.} 22. Nd5+ {[%emt 0:00:03]} Kd8 {[%emt 0:00:50]} 23. Nxe7 {[%emt 0:05:48]} Kxe7 {[%emt 0:01:38]} 24. dxe5 {[%emt 0:00:04]} Nxe5 {[%emt 0:02:52]} 25. f4 {[%emt 0:04:10]} Nf7 {[%emt 0:06:52] White did not feel at home in the position after the opening.  Weighted Error Value: White=0.57/Black=0.11 (very precise)} 0-1

[Event "Kezmarok Chess Open 2022"]
[Site "Kezmarok"]
[Date "2022.09.24"]
[Round "1.2"]
[White "Manik, Mikulas"]
[Black "Skapikova, Lubica"]
[Result "1-0"]
[ECO "C84"]
[WhiteElo "2362"]
[BlackElo "1823"]
[Annotator "TA"]
[PlyCount "67"]
[EventDate "2022.09.24"]
[EventType "swiss"]
[EventCountry "SVK"]
[SourceTitle "playchess.com"]
[Source "ChessBase"]
[SourceQuality "1"]
[TimeControl "40/5400+30:1800+30"]

{[%evp 16,67,23,18,29,34,47,23,38,41,36,27,70,83,92,72,141,104,96,100,197,210,202,195,209,203,220,175,189,182,176,155,165,171,211,195,241,240,231,229,268,264,265,256,731,684,933,915,1662,1520,6028,5904,2296,1710]} 1. e4 {[%emt 0:00:03]} e5 {[%emt 0:00:04]} 2. Nf3 {[%emt 0:00:03]} Nc6 {[%emt 0:00:03]} 3. Bb5 {[%emt 0:00:09]} a6 {[%emt 0:00:04]} 4. Ba4 {[%emt 0:00:04]} Nf6 {[%emt 0:00:04]} 5. O-O {[%emt 0:00:08]} Be7 {[%emt 0:00:03]} 6. d3 {[%emt 0:00:13]} d6 {[%emt 0:00:07]} 7. c3 {[%emt 0:00:14]} O-O {[%emt 0:00:03]} 8. Nbd2 {[%emt 0:01:38]} b5 {[%emt 0:01:28]} 9. Bc2 {[%emt 0:01:10]} Re8 {[%emt 0:00:05] C77: Ruy Lopez: 3...a6 4 Ba4 Nf6, unusual lines.} 10. Re1 {[%emt 0:00:20]} Bf8 {[%emt 0:00:07]} 11. Nf1 {[%emt 0:00:42]} g6 {[%emt 0:00:05] White has an edge.} 12. h3 {[%emt 0:01:21]} Bg7 {[%emt 0:00:06]} 13. d4 {[%emt 0:01:54]} Nh5 {[%emt 0:02:42]} 14. Bg5 {[%emt 0:04:17] [#]} f6 $146 {[%emt 0:02:32]} ({Predecessor:} 14... Qd7 15. Qd2 Na5 16. Rad1 f6 17. Be3 Nc4 18. Bb3 Kh8 19. Bxc4 bxc4 20. g4 Nf4 21. Bxf4 exf4 22. Qxf4 {1-0 (51) Zunker,R (2048)-Goertz,H (1821) Binz 2011}) 15. Be3 {[%emt 0:03:08]} Ne7 {[%emt 0:03:52]} ({Better is} 15... Na5) 16. Bb3+ {[%emt 0:02:46]} Kh8 {[%emt 0:00:06]} 17. dxe5 {[%emt 0:00:35]} fxe5 {[%emt 0:00:32]} (17... dxe5 $16 18. Bc5 Nc6) 18. Ng5 $18 {[%emt 0:01:04] [#] Nf7+ is the strong threat.} Rf8 {[%emt 0:01:31]} 19. Nf7+ {[%emt 0:00:32]} Rxf7 {[%emt 0:00:03]} 20. Bxf7 {[%emt 0:00:06]} Qf8 {[%emt 0:00:07]} 21. Bd5 {[%emt 0:00:36]} Nxd5 {[%emt 0:00:39]} 22. Qxd5 {[%emt 0:00:44]} ({But not} 22. exd5 Bb7) 22... Bd7 {[%emt 0:00:05]} 23. Qb7 {[%emt 0:01:45]} Qd8 {[%emt 0:00:26] [#]} 24. Bg5 $1 {[%emt 0:00:51][%mdl 512]} Nf6 {[%emt 0:00:09]} (24... Qb8 25. Qxb8+) 25. Rad1 {[%emt 0:02:20]} h6 {[%emt 0:00:05]} (25... Qc8 $142 26. Qxc8+ Rxc8) 26. Bxf6 {[%emt 0:00:16]} Bxf6 {[%emt 0:00:05]} 27. Ne3 {[%emt 0:00:43]} Rb8 {[%emt 0:02:09]} 28. Qxa6 {[%emt 0:01:05]} Ra8 {[%emt 0:00:45]} 29. Qb7 {[%emt 0:00:24]} Rxa2 $2 {[%emt 0:01:53]} (29... Rb8 30. Qd5 Qe8) 30. Ra1 {[%emt 0:00:13] White is clearly winning.} Rxa1 {[%emt 0:01:13]} 31. Rxa1 {[%emt 0:00:03] And now Ra8 would win.} Kh7 {[%emt 0:00:09]} 32. Ra8 {[%emt 0:00:15]} Qe7 {[%emt 0:00:02]} 33. Nd5 {[%emt 0:00:08]} Qf7 {[%emt 0:01:17]} 34. Nxf6+ {[%emt 0:00:07] Weighted Error Value: White=0.08 (flawless) /Black=0.29 (precise)} 1-0

[Event "Kezmarok Chess Open 2022"]
[Site "Kezmarok"]
[Date "2022.09.24"]
[Round "1.3"]
[White "Rak, Martin"]
[Black "Jablonicky, Martin"]
[Result "1/2-1/2"]
[ECO "B28"]
[WhiteElo "1805"]
[BlackElo "2344"]
[Annotator "TA"]
[PlyCount "113"]
[EventDate "2022.09.24"]
[EventType "swiss"]
[EventCountry "SVK"]
[SourceTitle "playchess.com"]
[Source "ChessBase"]
[SourceQuality "1"]
[TimeControl "40/5400+30:1800+30"]

{[%evp 15,113,22,20,19,47,17,27,4,23,10,25,-7,0,0,0,-12,0,0,0,-48,-45,-54,-43,-45,-57,-63,-13,-19,-4,-8,0,0,0,0,0,0,-11,-2,-16,-17,-14,-14,-8,-131,-140,-130,-46,-56,-56,-51,-20,-43,0,0,0,0,0,0,0,0,0,0,0,0,0,0,0,0,0,0,0,0,0,0,0,0,0,0,0,0,84,0,84,84,95,0,61,0,0,0,0,0,0,0,67,0,0,0,82,0]} 1. e4 {[%emt 0:00:05]} c5 {[%emt 0:00:18]} 2. Nf3 {[%emt 0:00:08]} a6 {[%emt 0:01:03]} 3. c4 {[%emt 0:00:33]} e6 {[%emt 0:00:31]} 4. d4 {[%emt 0:01:06]} cxd4 {[%emt 0:00:05]} 5. Nxd4 {[%emt 0:00:42]} Nf6 {[%emt 0:00:04]} 6. Nc3 {[%emt 0:00:11]} Qc7 {[%emt 0:00:23]} 7. Be2 {[%emt 0:02:41]} Bb4 {[%emt 0:01:29]} 8. Qd3 {[%emt 0:01:37]} Nc6 {[%emt 0:00:41]} 9. O-O {[%emt 0:01:48] is the new trend. B41: Sicilian: Kan Variation: 5 c4.} O-O {[%emt 0:01:03]} 10. Nxc6 {[%emt 0:06:05]} dxc6 {[%emt 0:04:44]} 11. Rd1 {[%emt 0:03:47] White has an edge.} e5 {[%emt 0:02:06]} 12. Be3 {[%emt 0:06:23]} Be6 {[%emt 0:02:18] [#]} 13. Rac1 $146 {[%emt 0:13:23][%cal Oc3d5]} ({Predecessor:} 13. f3 Nd7 14. Nd5 Qa5 15. Nxb4 Qxb4 16. a3 Qe7 17. Qd6 Qxd6 18. Rxd6 Rfe8 19. Kf2 {1-0 (43) Karousos Theodorakis,N (2153)-Loukopoulos,P (1902) Achaia 2017}) 13... Rfd8 {[%emt 0:00:44] Inhibits Nd5.} 14. Qb1 {[%emt 0:01:47][%cal Oc3d5]} Rxd1+ {[%emt 0:00:21]} 15. Nxd1 {[%emt 0:02:03]} Rd8 {[%emt 0:00:39]} 16. Nc3 {[%emt 0:05:02][%cal Oc3d5]} Qe7 {[%emt 0:02:43]} 17. Qc2 {[%emt 0:13:28]} (17. a3 $11 {is superior.} Bc5 18. Nd5 cxd5 19. Bxc5 Qxc5 20. cxd5) 17... Bc5 $15 {[%emt 0:03:42]} 18. Nd1 {[%emt 0:07:03][%cal Bc3d1,Bd1e3,Be3c2,Bc2e1,Be1d3,Bd3e5][%mdl 32]} h6 {[%emt 0:01:30]} 19. b3 {[%emt 0:04:28]} Bxe3 {[%emt 0:05:20]} 20. Nxe3 {[%emt 0:01:02]} Rd4 {[%emt 0:00:15]} (20... Qb4 $15 21. Qb1 Rd2) 21. f3 $11 {[%emt 0:02:12]} Qc5 {[%emt 0:01:36][%cal Od4e4]} 22. Qc3 {[%emt 0:01:25]} a5 {[%emt 0:01:51]} 23. Kf1 {[%emt 0:02:34]} g5 {[%emt 0:08:11][%cal Og5g4]} 24. Nc2 {[%emt 0:04:24]} Rd7 {[%emt 0:01:44]} 25. Ne1 {[%emt 0:02:52]} Nh5 {[%emt 0:03:24]} 26. Nd3 {[%emt 0:00:53]} Qe3 {[%emt 0:00:05][%cal Od7d3]} 27. Nxe5 {[%emt 0:01:26]} Qxc3 {[%emt 0:00:07]} 28. Rxc3 {[%emt 0:00:02]} Rd2 {[%emt 0:00:06] And now ...Nf4 would win.} 29. a4 {[%emt 0:00:53]} (29. Nd3 $11) 29... Nf4 $17 {[%emt 0:00:26]} 30. Re3 {[%emt 0:02:05]} f6 {[%emt 0:03:13]} ({Black should play} 30... Rb2 $1 $17 31. h3 Nxe2 32. Rxe2 Rxb3) 31. Ng4 $15 {[%emt 0:03:41]} Bxg4 {[%emt 0:00:12]} 32. fxg4 {[%emt 0:00:01][%mdl 4096] Endgame KRB-KRN} Kf7 {[%emt 0:03:09]} (32... Rb2 $5 {[%cal Rf4e2]}) 33. g3 {[%emt 0:06:01]} Nxe2 {[%emt 0:03:00]} 34. Rxe2 {[%emt 0:00:02] KR-KR} Rd3 {[%emt 0:00:06]} 35. Rb2 {[%emt 0:00:57]} Ke6 {[%emt 0:01:10]} 36. b4 {[%emt 0:02:31]} axb4 {[%emt 0:01:08]} 37. Rxb4 {[%emt 0:00:01]} Ra3 {[%emt 0:00:05]} 38. c5 {[%emt 0:00:58]} Ke5 {[%emt 0:01:08]} 39. Kg2 {[%emt 0:00:53]} Rc3 {[%emt 0:01:07]} 40. Rxb7 {[%emt 0:00:26]} Kxe4 {[%emt 0:01:02]} 41. a5 {[%emt 0:13:06][%cal Ba4a5,Ba5a6,Ba6a7][%mdl 32]} Rxc5 {[%emt 0:00:00]} 42. Rb4+ {[%emt 0:00:31]} Kd5 {[%emt 0:01:09]} 43. Ra4 {[%emt 0:00:27]} Rb5 $1 {[%emt 0:00:08]} 44. a6 {[%emt 0:00:22]} Rb8 {[%emt 0:00:05]} 45. Ra5+ {[%emt 0:03:44]} c5 {[%emt 0:04:44]} 46. a7 {[%emt 0:01:41]} Ra8 {[%emt 0:00:05]} 47. Ra6 {[%emt 0:01:01]} Ke4 {[%emt 0:01:57]} ({Don't play} 47... c4 48. Kf3 $16) (47... Kc4 $11) 48. Ra3 {[%emt 0:02:16] White is more active.} (48. Ra2 $16) 48... Kd5 {[%emt 0:01:26] [#]} (48... c4 $11 {remains equal.}) 49. Kf3 $1 $16 {[%emt 0:01:09]} Kc4 {[%emt 0:00:01]} 50. Ke4 {[%emt 0:01:31]} (50. Ke3 $16) 50... Kb4 {[%emt 0:00:02]} (50... Re8+ $1 $11 51. Kf3 (51. Kf5 Ra8 $11) 51... Ra8) 51. Ra1 {[%emt 0:00:07]} (51. Ra6 $14) 51... c4 $11 {[%emt 0:05:52]} 52. Kd4 {[%emt 0:03:42] Rb1+ is the strong threat.} Kb3 $1 {[%emt 0:11:34]} 53. Rc1 {Strongly threatening Rc3+.} Rd8+ {[%emt 0:00:01]} (53... Rxa7 $5 54. Rc3+ $8 Kb2 55. Rxc4 Ra1 $11) 54. Kc5 {[%emt 0:06:44] White threatens Rb1+ and mate.} Rc8+ {[%emt 0:00:10]} ({Black should try} 54... Ra8 $1 $11 55. Rxc4 (55. Rb1+ Ka2 $11) 55... Rxa7) 55. Kd4 {[%emt 0:01:38]} (55. Kd5 $1 $14 Ra8 56. Rxc4 Rxa7 57. Rc6) 55... Rd8+ {[%emt 0:00:43]} 56. Kc5 {[%emt 0:00:20]} ({Better is} 56. Ke4 $11 Ra8 57. Kd4) 56... Rc8+ $16 {[#]} 57. Kd4 {[%emt 0:01:56] Weighted Error Value: White=0.17 (very precise) /Black=0.14 (very precise)} (57. Kd5 $1 $16 Ra8 58. Rxc4 Rxa7 59. Rc6) 1/2-1/2

[Event "Kezmarok Chess Open 2022"]
[Site "Kezmarok"]
[Date "2022.09.24"]
[Round "1.4"]
[White "Hagarova, Zuzana"]
[Black "Sekova, Olivia"]
[Result "1-0"]
[ECO "B45"]
[WhiteElo "2287"]
[BlackElo "1797"]
[Annotator "TA"]
[PlyCount "49"]
[EventDate "2022.09.24"]
[EventType "swiss"]
[EventCountry "SVK"]
[SourceTitle "playchess.com"]
[Source "ChessBase"]
[SourceQuality "1"]
[TimeControl "40/5400+30:1800+30"]

{[%evp 12,49,39,32,91,31,68,58,68,73,48,66,75,72,72,26,24,32,163,157,244,173,158,166,168,169,162,168,1841,1840,1519,1432,29988,29988,29993,29994,29994,29994,29994,1022]} 1. e4 {[%emt 0:00:12]} c5 {[%emt 0:00:12]} 2. Nf3 {[%emt 0:00:17][%cal Bg1f3,Bf3d4,Bd4b5][%mdl 32]} e6 {[%emt 0:00:19]} 3. d4 {[%emt 0:00:26]} cxd4 {[%emt 0:00:09]} 4. Nxd4 {[%emt 0:00:06]} Nc6 {[%emt 0:00:27]} 5. Nc3 {[%emt 0:00:25]} Nf6 {[%emt 0:00:39]} 6. Ndb5 {[%emt 0:06:21]} Bc5 {[%emt 0:05:17]} 7. Bf4 {[%emt 0:09:33] 7.Bf4 scores better than 7.Nd6+.} e5 {[%emt 0:21:52] B45: Sicilian Four Knights.} ({Black should try} 7... O-O $14) 8. Bg5 {[%emt 0:08:33]} (8. Be3 $16 Bb4 9. a3 Bxc3+ 10. Nxc3) 8... O-O {[%emt 0:04:44]} 9. Qf3 $1 {[%emt 0:09:29]} Be7 {[%emt 0:15:16] White is slightly better.} ({Weaker is} 9... a6 10. Nd5 Be7 11. Nxf6+ Bxf6 12. Bxf6 Qxf6 13. Qxf6 gxf6 14. Nd6 $16) 10. Bxf6 {[%emt 0:04:14]} Bxf6 {[%emt 0:00:28]} 11. Nd5 {[%emt 0:00:12] [#]} Bg5 $146 {[%emt 0:02:27]} ({Predecessor:} 11... Be7 12. c3 d6 13. O-O-O Be6 14. Kb1 a6 15. Nbc7 Rc8 16. Nxe7+ Qxe7 17. Nd5 Qd8 {½-½ (31) Ivanov,V (2176)-Gromov,S (2241) ICCF email 2013}) 12. h4 {[%emt 0:01:04][%cal Bh2h4,Bh4h5][%mdl 32]} Be7 {[%emt 0:05:41]} 13. c3 {[%emt 0:07:21] White is much more active. The black rooks are badly placed.} (13. Nxe7+ $16 Qxe7 14. Qa3) 13... a6 $11 {[%emt 0:03:32]} 14. Nxe7+ {[%emt 0:02:17]} Nxe7 {[%emt 0:01:30] This costs Black the game.} (14... Qxe7 $14 15. Nc7 Rb8) 15. Nd6 $36 {[%emt 0:01:21][%mdl 2048] White is really pushing.} Qc7 {[%emt 0:06:17]} (15... b5 $16 {was worth a try.} 16. h5 h6) 16. Rd1 {[%emt 0:01:34]} b5 {[%emt 0:02:11] Prevents Bc4.} 17. h5 {[%emt 0:01:30] [#] aiming for h6.} h6 {[%emt 0:02:48]} 18. Rh3 {[%emt 0:07:10] Threatens to win with Rg3.} Bb7 {[%emt 0:06:14][%cal Of7f5]} 19. Qg4 {[%emt 0:11:46] Against f5. Hoping for Rg3.} g5 $2 {[%emt 0:08:11]} (19... f5 20. exf5 Bd5) 20. hxg6 {[%emt 0:05:04]} fxg6 {[%emt 0:00:06]} 21. Rxh6 {[%emt 0:00:47]} Rf4 {[%emt 0:00:18]} 22. Qh3 {[%emt 0:03:27] White mates.} Bxe4 {[%emt 0:02:41]} 23. Rh8+ {[%emt 0:00:29]} Kg7 {[%emt 0:00:40]} 24. Qh7+ {[%emt 0:00:19]} Kf6 {[%emt 0:00:31]} 25. Qf7+ {[%emt 0:00:12] Weighted Error Value: White=0.11 (very precise) /Black=0.70} 1-0

[Event "Kezmarok Chess Open 2022"]
[Site "Kezmarok"]
[Date "2022.09.24"]
[Round "1.5"]
[White "Vestur, Rastislav"]
[Black "Dubessay, Bastien"]
[Result "0-1"]
[ECO "A04"]
[WhiteElo "1789"]
[BlackElo "2259"]
[Annotator "TA"]
[PlyCount "56"]
[EventDate "2022.09.24"]
[EventType "swiss"]
[EventCountry "SVK"]
[SourceTitle "playchess.com"]
[Source "ChessBase"]
[SourceQuality "1"]
[TimeControl "40/5400+30:1800+30"]

{[%evp 10,56,21,9,18,8,18,23,14,0,0,-43,-46,-34,-31,-52,-20,-168,-165,-155,-170,-138,-89,-399,-402,-399,-402,-402,-395,-431,-439,-479,-390,-375,-360,-500,-483,-585,-558,-578,-570,-536,-347,-533,-529,-533,-541,-850,-785]} 1. Nf3 e6 2. c4 f5 3. Nc3 Nf6 4. e3 b6 5. Be2 Bb7 6. d4 Bb4 {A85: Dutch Defence: 2 c4 Nf6 3 Nc3.} 7. O-O O-O 8. Qc2 Bxc3 {White has an edge.} 9. bxc3 d6 {[#]} 10. d5 $146 ({Predecessor:} 10. a4 Nbd7 11. a5 Rb8 12. axb6 axb6 13. Rd1 Ne4 14. Nd2 Nxd2 15. Qxd2 Nf6 16. f3 {0-1 (47) Portillo Castellon,J (1877)-Paya Prats,D (1994) Benidorm 2013}) 10... exd5 11. Qxf5 Ne4 12. Qh5 Nd7 {next ...Ndf6 is good for Black.} 13. Bb2 {[#]} (13. cxd5 $11 {and White is okay.} Ndf6 14. Qh3) 13... Ndf6 $1 $19 {Pair of Knights!} 14. Qh4 Ba6 15. Nd4 Qd7 {Inhibits Ne6.} ({Much weaker is} 15... Bxc4 $6 16. Bxc4 dxc4 17. Ne6 $14) ({Black should play} 15... Qe8 16. Nb5 Rf7) 16. cxd5 $2 {[%mdl 8192]} (16. f3 $17 {is more resistant.} Nc5 17. Nc2) 16... Bxe2 ({But not} 16... g5 $2 17. Qxe4 Nxe4 18. Bxa6 $19) 17. Nxe2 Qb5 18. Nd4 Qxb2 19. Ne6 Rf7 20. c4 h6 21. f3 Nc5 22. Nd4 Re8 23. Nf5 {[#]} Nxd5 $1 {[%mdl 512]} 24. Nxh6+ gxh6 25. cxd5 Qf6 26. Qf2 (26. Qxf6 {was the only defense.} Rxf6 27. e4) 26... Qg5 {Black is clearly winning.} 27. f4 Qxd5 28. Qh4 Rg7 {Weighted Error Value: White=0.68/Black=0.22 (precise)} 0-1

[Event "Kezmarok Chess Open 2022"]
[Site "Kezmarok"]
[Date "2022.09.24"]
[Round "1.6"]
[White "Bazakutsa, Svyatoslav"]
[Black "Fizerova, Lucie"]
[Result "1-0"]
[ECO "A30"]
[WhiteElo "2182"]
[BlackElo "1779"]
[Annotator "TA"]
[PlyCount "55"]
[EventDate "2022.09.24"]
[EventType "swiss"]
[EventCountry "SVK"]
[SourceTitle "playchess.com"]
[Source "ChessBase"]
[SourceQuality "1"]
[TimeControl "40/5400+30:1800+30"]

{[%evp 19,55,35,73,42,50,0,68,55,110,128,107,115,130,114,146,135,153,139,134,138,139,121,119,107,187,197,323,310,335,325,396,387,380,367,533,529,680,643]} 1. c4 c5 2. Nf3 Nf6 3. Nc3 g6 4. e4 d6 5. d4 cxd4 6. Nxd4 Bg7 7. Be2 Nc6 8. Be3 O-O 9. O-O Bd7 10. h3 a6 {[%cal Ob7b5]} 11. a3 {B38: Sicilian: Maroczy Bind with 5...Bg7 and 7...0-0.} Rc8 12. Rc1 (12. Nf3 $14) 12... Ne8 {[#]} ({Black should play} 12... Nxd4 $1 $11 13. Bxd4 (13. Qxd4 Ng4 $11) 13... Bh6) 13. b4 $146 {[%cal Bb2b4,Bb4b5][%mdl 32] White is more active. White is slightly better.} ({Predecessor:} 13. Nd5 Nf6 14. Nxc6 Bxc6 15. Nb6 Rb8 16. f3 Nd7 17. Qb3 Nxb6 18. Bxb6 Qc8 19. Rfd1 {½-½ (63) Dzunic,V (2103)-Branovacki,G (1924) Belgrade 2009}) 13... Nc7 {Black is now going downhill.} (13... Nxd4 $14 14. Bxd4 Nf6) 14. Nb3 $16 f5 15. exf5 Bxf5 16. Qd2 Rf7 17. Rfd1 Qf8 18. b5 Ne5 19. f4 Nd7 20. Bf3 {[%cal Be2f3,Bf3b7,Bb7c6][%mdl 32]} axb5 21. Nxb5 Nxb5 (21... b6 $16) 22. cxb5 $18 Nf6 (22... b6 $142 23. a4 Re8) 23. Bxb7 Rb8 24. Bc6 Ne4 25. Qb4 Ng3 26. Qe1 {Prevents Ne2+.} ({Not} 26. Kf2 Nh5 27. Nd4 (27. g4 Nxf4 28. gxf5 Rxf5 $14) 27... e5 $18) 26... Ne4 (26... Nh5 $142 27. g4 Nxf4) 27. Ba7 {[%csl LRb8,LRe4]} Ra8 28. b6 {Weighted Error Value: White=0.09 (flawless) /Black=0.58} 1-0

[Event "Kezmarok Chess Open 2022"]
[Site "Kezmarok"]
[Date "2022.09.24"]
[Round "1.7"]
[White "Hagara, Eduard"]
[Black "Wisniewski, Michal"]
[Result "1/2-1/2"]
[ECO "A00"]
[WhiteElo "1734"]
[BlackElo "2152"]
[Annotator "TA"]
[PlyCount "102"]
[EventDate "2022.09.24"]
[EventType "swiss"]
[EventCountry "SVK"]
[SourceTitle "playchess.com"]
[Source "ChessBase"]
[SourceQuality "1"]
[TimeControl "40/5400+30:1800+30"]

{[%evp 9,102,-32,-27,-51,-46,-76,-56,-163,-154,-161,-62,-102,-95,-84,-97,-97,-68,-90,-79,-83,-56,-81,-72,-73,-83,-107,-102,-140,-113,-106,-75,-82,-82,-82,-82,-81,-82,-87,-89,-82,-82,-160,-166,-146,-147,-178,-23,-23,-23,-33,-24,-37,0,0,0,0,0,-15,-15,-17,-14,-15,0,0,0,0,0,0,0,-8,-8,-8,-8,-8,-8,-8,-8,-143,-143,-143,-143,-143,-143,-143,-143,-143,-143,-143,-143,-143,-143,-143,-143,-165,-172]} 1. a3 {[%emt 0:00:34]} g6 {[%emt 0:01:03]} 2. b4 {[%emt 0:00:39]} Bg7 {[%emt 0:00:06]} 3. Nc3 {[%emt 0:00:18] [#]} a5 $146 {[%emt 0:00:12]} ({Predecessor:} 3... d5 4. Bb2 e5 5. e4 d4 6. Nce2 c5 7. d3 b6 8. g3 Nc6 9. b5 Nce7 10. Bg2 {0-1 (43) Bieszk,S (826)-Vlasov,A (1190) LSS email 2021}) 4. Bb2 {[%emt 0:01:17]} d5 {[%emt 0:00:13]} 5. e3 {[%emt 0:00:44]} e5 {[%emt 0:00:14]} 6. d4 {[%emt 0:01:50] A00: Irregular Openings.} exd4 {[%emt 0:01:49]} 7. exd4 {[%emt 0:01:18]} Ne7 {[%emt 0:00:09][%cal Bg8e7,Be7f5,Bf5g3][%mdl 32]} 8. Nce2 {[%emt 0:03:29]} (8. b5 $15) 8... O-O $19 {[%emt 0:00:17]} 9. Nf3 {[%emt 0:01:19]} Qd6 {[%emt 0:05:20] Against Nf4} ({Better is} 9... Nf5 $19 {Threatens to win with ...Re8.} 10. g3 Qe7) 10. c3 {[%emt 0:02:02]} Re8 {[%emt 0:01:52]} 11. Ng3 {[%emt 0:04:48]} Nf5+ {[%emt 0:00:19]} 12. Be2 {[%emt 0:00:22]} Nxg3 {[%emt 0:00:05]} 13. hxg3 {[%emt 0:01:19]} Qe7 {[%emt 0:00:04]} 14. Kf1 {[%emt 0:01:29]} Bg4 {[%emt 0:01:24]} 15. Qd2 {[%emt 0:04:25]} axb4 {[%emt 0:09:11]} 16. cxb4 {[%emt 0:02:10]} Nd7 {[%emt 0:00:43]} 17. Re1 {[%emt 0:02:56]} Qd6 {[%emt 0:02:48]} 18. Qf4 {[%emt 0:12:40]} Qxf4 {[%emt 0:04:27]} 19. gxf4 {[%emt 0:00:31]} Re4 {[%emt 0:03:35]} 20. Ne5 {[%emt 0:05:28]} Bxe2+ {[%emt 0:01:33]} 21. Rxe2 {[%emt 0:00:21]} Nb6 {[%emt 0:03:30]} 22. Rxe4 {[%emt 0:08:04]} dxe4 {[%emt 0:00:07]} 23. Ke2 {[%emt 0:01:08] [#]} f6 $1 {[%emt 0:00:05]} 24. Ng4 {[%emt 0:01:24]} Nc4 {[%emt 0:00:05][%csl LRa3,LRb2]} 25. Bc1 {[%emt 0:05:20]} (25. Rb1 $142) 25... Nxa3 $17 {[%emt 0:00:26]} 26. Bxa3 {[%emt 0:04:25]} Rxa3 {[%emt 0:00:05][%mdl 4096] Endgame KRB-KRN} 27. Rc1 {[%emt 0:00:35]} c6 {[%emt 0:14:59]} (27... Ra2+ $19 28. Kf1 f5) 28. b5 $1 $11 {[%emt 0:01:01]} h5 {[%emt 0:00:55]} 29. bxc6 {[%emt 0:02:46]} bxc6 {[%emt 0:00:04]} 30. Ne3 {[%emt 0:01:12]} Rd3 {[%emt 0:00:33]} 31. f5 {[%emt 0:06:05]} g5 {[%emt 0:03:46]} 32. Rc4 {[%emt 0:01:23]} g4 {[%emt 0:00:51]} 33. Nc2 {[%emt 0:01:21]} Bh6 {[%emt 0:02:08]} 34. Rxc6 {[%emt 0:00:45]} Bg5 {[%emt 0:00:23] [#] Strongly threatening ...Rd2+.} 35. g3 {[%emt 0:05:48]} Rf3 {[%emt 0:01:22] And now ...h4 would win.} 36. Re6 {[%emt 0:03:33]} Rxf5 {[%emt 0:00:18] ...h4 is the strong threat.} 37. Rxe4 {[%emt 0:00:33]} Kf7 {[%emt 0:00:04]} 38. Ne3 {[%emt 0:02:43]} Ra5 {[%emt 0:01:22]} 39. f4 {[%emt 0:01:44]} gxf3+ {[%emt 0:03:00]} 40. Kxf3 {[%emt 0:00:29]} f5 {[%emt 0:00:02]} 41. Re5 {[%emt 0:31:47]} Rxe5 {[%emt 0:30:05]} 42. dxe5 {[%emt 0:00:17]} Ke6 {[%emt 0:00:04]} 43. Nxf5 {[%emt 0:05:04]} Kxf5 {[%emt 0:00:21] KB-KPP. Black is clearly better.} 44. Kg2 {[%emt 0:01:21]} Kg4 {[%emt 0:00:03]} 45. e6 {[%emt 0:00:52]} Be7 {[%emt 0:00:01]} 46. Kh2 {[%emt 0:00:58]} Bc5 {[%emt 0:00:05]} 47. Kg2 {[%emt 0:00:31]} Bd6 {[%emt 0:00:02]} 48. Kh1 {[%emt 0:01:09]} Kh3 {[%emt 0:00:03]} 49. Kg1 {[%emt 0:00:20]} Be7 {[%emt 0:00:03]} 50. Kh1 {[%emt 0:00:27]} Bc5 {[%emt 0:00:04]} 51. e7 {[%emt 0:01:18]} Bxe7 {[%emt 0:00:08] Weighted Error Value: White=0.16 (very precise) /Black=0.14 (very precise)} 1/2-1/2